fUST/lending_fUST_20250625
["ID","MTS","AMOUNT","RATE_DAILY","PERIOD"]
[367425688,1750794640836,-500.0,0.00017772,2]
[367425690,1750794640845,-1000.0,0.00017772,2]
[367425692,1750794640853,-517.77986984,0.00017782,2]
[367425694,1750794640862,-500.0,0.00017782,2]
[367425696,1750794640872,-500.0,0.00017797,2]
[367425698,1750794640881,-500.0,0.00017797,2]
[367425700,1750794640890,-500.0,0.00017797,2]
[367425702,1750794640899,-579.91871029,0.00017797,2]
[367425704,1750794640908,-500.0,0.00017797,2]
[367425706,1750794640918,-1000.0,0.00017797,2]
[367425708,1750794640927,-1000.0,0.00017797,2]
[367425710,1750794640936,-500.0,0.00017806,2]
[367425712,1750794640945,-500.0,0.00017806,2]
[367425714,1750794640954,-460.0,0.00017808,2]
[367425716,1750794640964,-151.0,0.00017808,2]
[367425718,1750794640974,-460.0,0.00017808,2]
[367425719,1750794640983,-460.0,0.00017808,2]
[367425721,1750794640992,-460.0,0.00017808,2]
[367425723,1750794641001,-460.0,0.00017808,2]
[367425725,1750794641011,-460.0,0.00017808,2]
[367425727,1750794641020,-460.0,0.00017808,2]
[367425729,1750794641029,-822.07,0.00017808,2]
[367425731,1750794641038,-460.0,0.00017808,2]
[367425733,1750794641047,-460.0,0.00017808,2]
[367425735,1750794641057,-460.0,0.00017808,2]
[367425737,1750794641066,-460.0,0.00017808,2]
[367425739,1750794641075,-460.0,0.00017808,2]
[367425742,1750794641086,-460.0,0.00017808,2]
[367425743,1750794641095,-957.79,0.00017808,2]
[367425745,1750794641104,-151.0,0.00017808,2]
[367425747,1750794641113,-460.0,0.00017808,2]
[367425749,1750794641122,-460.0,0.00017808,2]
[367425751,1750794641131,-460.0,0.00017808,2]
[367425753,1750794641140,-574.08,0.00017808,2]
[367425755,1750794641149,-200.038109,0.00017808,2]
[367425757,1750794641158,-531.12,0.00017808,2]
[367425759,1750794641167,-1262.78,0.00017808,2]
[367425761,1750794641177,-460.0,0.00017808,2]
[367425763,1750794641186,-977.36,0.00017808,2]
[367425765,1750794641196,-460.0,0.00017808,2]
[367425767,1750794641205,-460.0,0.00017808,2]
[367425769,1750794641214,-571.74,0.00017808,2]
[367425771,1750794641223,-460.0,0.00017808,2]
[367425773,1750794641232,-460.0,0.00017808,2]
[367425775,1750794641243,-1098.71,0.00017808,2]
[367425777,1750794641252,-460.0,0.00017808,2]
[367425779,1750794641261,-151.0,0.00017808,2]
[367425781,1750794641270,-833.51,0.00017808,2]
[367425783,1750794641279,-631.289635,0.00017808,2]
[367425784,1750794641290,-631.289635,0.00017808,2]
[367425786,1750794641299,-460.0,0.00017808,2]
[367425788,1750794641308,-1554.6,0.00017808,2]
[367425790,1750794641318,-460.0,0.00017808,2]
[367425792,1750794641327,-460.0,0.00017808,2]
[367425794,1750794641336,-215.002681,0.00017808,2]
[367425796,1750794641346,-452.58,0.00017808,2]
[367425798,1750794641354,-460.0,0.00017808,2]
[367425800,1750794641364,-215.002681,0.00017808,2]
[367425802,1750794641373,-843.67,0.00017808,2]
[367425804,1750794641382,-151.0,0.00017808,2]
[367425806,1750794641391,-460.0,0.00017808,2]
[367425808,1750794641400,-460.0,0.00017808,2]
[367425810,1750794641409,-460.0,0.00017808,2]
[367425812,1750794641418,-475.45,0.00017808,2]
[367425814,1750794641427,-2304.36,0.00017808,2]
[367425816,1750794641436,-460.0,0.00017808,2]
[367425818,1750794641445,-151.0,0.00017808,2]
[367425820,1750794641454,-460.0,0.00017808,2]
[367425822,1750794641463,-490.18,0.00017808,2]
[367425823,1750794641472,-544.62,0.00017808,2]
[367425825,1750794641481,-1069.45,0.00017808,2]
[367425827,1750794641490,-1030.01,0.00017808,2]
[367425830,1750794641501,-460.0,0.00017808,2]
[367425831,1750794641511,-460.0,0.00017808,2]
[367425833,1750794641520,-460.0,0.00017808,2]
[367425835,1750794641529,-460.0,0.00017808,2]
[367425837,1750794641539,-460.0,0.00017808,2]
[367425839,1750794641548,-2721.4,0.00017808,2]
[367425841,1750794641559,-192.031872,0.00017808,2]
[367425844,1750794641569,-1150.63,0.00017808,2]
[367425846,1750794641578,-192.031872,0.00017808,2]
[367425848,1750794641587,-460.0,0.00017808,2]
[367425849,1750794641596,-1000.0,0.00017837,2]
[367425851,1750794641605,-500.0,0.00017845,2]
[367425853,1750794641615,-546.29343517,0.00017845,2]
[367425855,1750794641624,-500.0,0.00017845,2]
[367425857,1750794641633,-817.69235227,0.00017851,2]
[367425859,1750794641642,-275.99555545,0.00017866,2]
[367425861,1750794641651,-206.08478,0.00017866,2]
[367425863,1750794641660,-500.55881292,0.00017886,2]
[367425865,1750794641670,-325.30533255,0.00017888,2]
[367425867,1750794641679,-151.0,0.000179,2]
[367425869,1750794641688,-500.0,0.00017906,2]
[367425871,1750794641697,-627.1042849,0.00017906,2]
[367425873,1750794641706,-500.0,0.00017906,2]
[367425875,1750794641716,-500.0,0.00017906,2]
[367425877,1750794641725,-500.0,0.00017906,2]
[367425879,1750794641734,-500.0,0.00017906,2]
[367425881,1750794641744,-151.0,0.00017909,2]
[367425884,1750794641754,-151.0,0.00017909,2]
[367425886,1750794641765,-151.0,0.00017909,2]
[367425888,1750794641776,-151.0,0.00017909,2]
[367425890,1750794641786,-151.0,0.00017909,2]
[367425892,1750794641795,-179.327122,0.00017909,2]
[367425894,1750794641805,-179.327122,0.00017909,2]
[367425896,1750794641814,-1000.92557149,0.00017909,2]
[367425898,1750794641824,-420.0,0.0001796,2]
[367425900,1750794641834,-420.0,0.0001796,2]
[367425902,1750794641843,-420.0,0.0001796,2]
[367425904,1750794641852,-420.0,0.0001796,2]
[367425906,1750794641861,-151.0,0.00017969,2]
[367425908,1750794641870,-151.0,0.00017969,2]
[367425910,1750794641880,-151.0,0.00017969,2]
[367425912,1750794641889,-151.0,0.00017976,2]
[367425914,1750794641899,-151.0,0.00017976,2]
[367425916,1750794641908,-159.469316,0.00017976,2]
[367425918,1750794641917,-1000.0,0.00017976,2]
[367425920,1750794641926,-1000.0,0.00017976,2]
[367425922,1750794641936,-185.0,0.00018029,2]
[367425924,1750794641945,-1680.0,0.00018049,2]
[367425926,1750794641955,-185.0,0.0001807,2]
[367425928,1750794641965,-1402.32,0.00018072,3]
[367425930,1750794641974,-701.16,0.00018072,3]
[367425932,1750794641983,-350.58,0.00018072,3]
[367425934,1750794641993,-151.0,0.00018072,2]
[367425936,1750794642002,-198.864372,0.00018072,2]
[367425938,1750794642011,-198.864372,0.00018072,2]
[367425940,1750794642021,-460.0,0.00018082,2]
[367425942,1750794642030,-460.0,0.00018082,2]
[367425944,1750794642040,-460.0,0.00018082,2]
[367425945,1750794642049,-460.0,0.00018082,2]
[367425948,1750794642059,-460.0,0.00018082,2]
[367425950,1750794642069,-822.07,0.00018082,2]
[367425952,1750794642079,-460.0,0.00018082,2]
[367425954,1750794642089,-344.94354752,0.00018082,2]
[367425956,1750794642098,-460.0,0.00018082,2]
[367425958,1750794642108,-460.0,0.00018082,2]
[367425960,1750794642117,-460.0,0.00018082,2]
[367425962,1750794642126,-957.79,0.00018082,2]
[367425964,1750794642135,-460.0,0.00018082,2]
[367425966,1750794642145,-460.0,0.00018082,2]
[367425968,1750794642154,-574.08,0.00018082,2]
[367425970,1750794642163,-531.12,0.00018082,2]
[367425971,1750794642173,-1262.78,0.00018082,2]
[367425974,1750794642182,-460.0,0.00018082,2]
[367425976,1750794642192,-977.36,0.00018082,2]
[367425978,1750794642202,-460.0,0.00018082,2]
[367425980,1750794642211,-460.0,0.00018082,2]
[367425982,1750794642220,-571.74,0.00018082,2]
[367425984,1750794642229,-490.48,0.00018082,2]
[367425985,1750794642240,-460.0,0.00018082,2]
[367425988,1750794642251,-1098.71,0.00018082,2]
[367425990,1750794642260,-460.0,0.00018082,2]
[367425992,1750794642269,-833.51,0.00018082,2]
[367425993,1750794642279,-460.0,0.00018082,2]
[367425996,1750794642290,-1554.6,0.00018082,2]
[367425998,1750794642300,-460.0,0.00018082,2]
[367426000,1750794642310,-588.21,0.00018082,2]
[367426002,1750794642320,-460.0,0.00018082,2]
[367426004,1750794642332,-843.67,0.00018082,2]
[367426006,1750794642342,-460.0,0.00018082,2]
[367426008,1750794642351,-393.0,0.00018082,2]
[367426011,1750794642361,-475.45,0.00018082,2]
[367426013,1750794642370,-2304.36,0.00018082,2]
[367426016,1750794642379,-307.19,0.00018082,2]
[367426019,1750794642389,-490.18,0.00018082,2]
[367426021,1750794642398,-544.62,0.00018082,2]
[367426023,1750794642407,-1069.45,0.00018082,2]
[367426025,1750794642416,-1030.01,0.00018082,2]
[367426027,1750794642426,-460.0,0.00018082,2]
[367426029,1750794642436,-460.0,0.00018082,2]
[367426031,1750794642445,-460.0,0.00018082,2]
[367426033,1750794642454,-460.0,0.00018082,2]
[367426035,1750794642464,-460.0,0.00018082,2]
[367426037,1750794642474,-2721.4,0.00018082,2]
[367426039,1750794642484,-1150.63,0.00018082,2]
[367426041,1750794642494,-460.0,0.00018082,2]
[367426043,1750794642503,-620.29654723,0.00018096,2]
[367426045,1750794642512,-5888.0,0.00018113,2]
[367426048,1750794642522,-1243.0,0.00018124,2]
[367426051,1750794642531,-192.031872,0.00018124,2]
[367426054,1750794642542,-192.031872,0.00018124,2]
[367426057,1750794642551,-185.0,0.00018132,2]
[367426060,1750794642561,-185.0,0.00018142,2]
[367426064,1750794642570,-286.51916417,0.00018172,2]
[367426067,1750794642580,-151.0,0.000182,2]
[367426070,1750794642590,-1500.0,0.00018306,2]
[367426073,1750794642599,-1500.0,0.00018306,2]
[367426076,1750794642608,-1243.0,0.00018307,2]
[367426079,1750794642617,-151.0,0.00018337,2]
[367426082,1750794642626,-151.0,0.00018337,2]
[367426085,1750794642636,-151.0,0.00018337,2]
[367426088,1750794642645,-259.92698687,0.00018337,2]
[367426091,1750794642654,-151.0,0.00018337,2]
[367426094,1750794642663,-151.0,0.00018337,2]
[367426097,1750794642673,-151.0,0.00018337,2]
[367426099,1750794642682,-159.469316,0.00018337,2]
[367426101,1750794642692,-159.469316,0.00018337,2]
[367426103,1750794642701,-151.0,0.00018337,2]
[367426105,1750794642711,-151.0,0.00018337,2]
[367426108,1750794642720,-211.938419,0.00018337,2]
[367426111,1750794642729,-179.327122,0.00018337,2]
[367426114,1750794642739,-179.327122,0.00018337,2]
[367426117,1750794642748,-198.864372,0.00018337,2]
[367426120,1750794642758,-198.864372,0.00018337,2]
[367426123,1750794642767,-151.0,0.00018337,2]
[367426126,1750794642777,-631.289635,0.00018337,2]
[367426129,1750794642786,-631.289635,0.00018337,2]
[367426132,1750794642796,-215.002681,0.00018337,2]
[367426135,1750794642806,-215.002681,0.00018337,2]
[367426138,1750794642815,-151.0,0.00018337,2]
[367426141,1750794642824,-151.0,0.00018337,2]
[367426145,1750794642834,-152.61247216,0.00018337,2]
[367426148,1750794642844,-594.18146038,0.00018337,2]
[367426150,1750794642854,-500.0,0.00018337,2]
[367426154,1750794642863,-500.0,0.00018337,2]
[367426155,1750794642873,-500.0,0.00018337,2]
[367426158,1750794642883,-500.0,0.00018337,2]
[367426161,1750794642893,-500.0,0.00018337,2]
[367426165,1750794642903,-500.0,0.00018337,2]
[367426169,1750794642914,-500.0,0.00018337,2]
[367426171,1750794642924,-500.0,0.00018337,2]
[367426174,1750794642934,-500.0,0.00018337,2]
[367426177,1750794642944,-25000.0,0.00018337,2]
[367426180,1750794642954,-307.92676441,0.00018337,2]
[367426184,1750794642963,-500.0,0.00018337,2]
[367426187,1750794642974,-500.0,0.00018337,2]
[367426189,1750794642984,-17425.76488798,0.00018337,2]
[367426192,1750794642994,-500.0,0.00018337,2]
[367426196,1750794643006,-500.0,0.00018337,2]
[367426198,1750794643016,-500.0,0.00018337,2]
[367426200,1750794643025,-500.0,0.00018337,2]
[367426202,1750794643034,-500.0,0.00018337,2]
[367426204,1750794643045,-500.0,0.00018337,2]
[367426206,1750794643054,-500.0,0.00018337,2]
[367426208,1750794643064,-500.0,0.00018337,2]
[367426210,1750794643074,-500.0,0.00018337,2]
[367426212,1750794643083,-5000.0,0.00018337,2]
[367426214,1750794643093,-500.0,0.00018337,2]
[367426216,1750794643103,-500.0,0.00018337,2]
[367426218,1750794643113,-207.4,0.00018337,2]
[367426220,1750794643123,-500.0,0.00018337,2]
[367426222,1750794643133,-1500.0,0.00018345,2]
[367426224,1750794643144,-151.0,0.00018356,2]
[367426226,1750794643155,-159.376021,0.00018356,2]
[367426228,1750794643166,-151.0,0.00018356,2]
[367426230,1750794643176,-460.0,0.00018356,2]
[367426232,1750794643186,-460.0,0.00018356,2]
[367426234,1750794643195,-328.24142538,0.00018356,2]
[367426236,1750794643204,-460.0,0.00018356,2]
[367426238,1750794643214,-822.07,0.00018356,2]
[367426240,1750794643223,-460.0,0.00018356,2]
[367426242,1750794643232,-460.0,0.00018356,2]
[367426244,1750794643243,-460.0,0.00018356,2]
[367426246,1750794643253,-460.0,0.00018356,2]
[367426248,1750794643263,-957.79,0.00018356,2]
[367426251,1750794643273,-460.0,0.00018356,2]
[367426254,1750794643283,-584.89,0.00018356,2]
[367426257,1750794643294,-574.08,0.00018356,2]
[367426260,1750794643304,-531.12,0.00018356,2]
[367426263,1750794643313,-1262.78,0.00018356,2]
[367426266,1750794643324,-460.0,0.00018356,2]
[367426268,1750794643333,-977.36,0.00018356,2]
[367426270,1750794643348,-460.0,0.00018356,2]
[367426272,1750794643358,-460.0,0.00018356,2]
[367426275,1750794643368,-571.74,0.00018356,2]
[367426277,1750794643377,-460.0,0.00018356,2]
[367426279,1750794643387,-1098.71,0.00018356,2]
[367426281,1750794643396,-167.71,0.00018356,2]
[367426283,1750794643405,-833.51,0.00018356,2]
[367426285,1750794643415,-589.42,0.00018356,2]
[367426287,1750794643424,-1554.6,0.00018356,2]
[367426298,1750794643558,-460.0,0.00018356,2]
[367426300,1750794643568,-460.0,0.00018356,2]
[367426302,1750794643577,-843.67,0.00018356,2]
[367426304,1750794643586,-460.0,0.00018356,2]
[367426306,1750794643596,-2304.36,0.00018356,2]
[367426308,1750794643605,-475.45,0.00018356,2]
[367426310,1750794643614,-490.18,0.00018356,2]
[367426312,1750794643623,-544.62,0.00018356,2]
[367426314,1750794643632,-1069.45,0.00018356,2]
[367426316,1750794643641,-460.0,0.00018356,2]
[367426318,1750794643650,-1030.01,0.00018356,2]
[367426320,1750794643660,-460.0,0.00018356,2]
[367426322,1750794643669,-460.0,0.00018356,2]
[367426324,1750794643678,-460.0,0.00018356,2]
[367426326,1750794643688,-460.0,0.00018356,2]
[367426328,1750794643697,-2721.4,0.00018356,2]
[367426331,1750794643706,-192.031872,0.00018356,2]
[367426332,1750794643716,-1150.63,0.00018356,2]
[367426334,1750794643725,-192.031872,0.00018356,2]
[367426336,1750794643735,-163.21,0.00018356,2]
[367426338,1750794643744,-1000.0,0.00018454,2]
[367426341,1750794643754,-540.73312332,0.00018454,2]
[367426343,1750794643764,-1000.0,0.00018454,2]
[367426345,1750794643776,-151.0,0.000185,2]
[367426347,1750794643785,-965.0,0.00018525,2]
[367426349,1750794643794,-406.0,0.00018525,2]
[367426351,1750794643803,-406.0,0.00018525,2]
[367426353,1750794643812,-654.0,0.00018525,2]
[367426355,1750794643821,-2160.0,0.00018525,2]
[367426357,1750794643830,-460.0,0.0001863,2]
[367426359,1750794643839,-460.0,0.0001863,2]
[367426361,1750794643848,-460.0,0.0001863,2]
[367426363,1750794643857,-822.07,0.0001863,2]
[367426365,1750794643866,-460.0,0.0001863,2]
[367426367,1750794643876,-460.0,0.0001863,2]
[367426368,1750794643885,-460.0,0.0001863,2]
[367426370,1750794643894,-460.0,0.0001863,2]
[367426372,1750794643903,-957.79,0.0001863,2]
[367426374,1750794643913,-460.0,0.0001863,2]
[367426376,1750794643922,-574.08,0.0001863,2]
[367426378,1750794643932,-531.12,0.0001863,2]
[367426380,1750794643942,-1262.78,0.0001863,2]
[367426382,1750794643951,-977.36,0.0001863,2]
[367426385,1750794643960,-460.0,0.0001863,2]
[367426387,1750794643970,-460.0,0.0001863,2]
[367426389,1750794643979,-460.0,0.0001863,2]
[367426391,1750794643989,-571.74,0.0001863,2]
[367426393,1750794643997,-523.97814808,0.0001863,2]
[367426395,1750794644007,-1098.71,0.0001863,2]
[367426396,1750794644016,-151.0,0.0001863,2]
[367426398,1750794644025,-833.51,0.0001863,2]
[367426400,1750794644036,-631.289635,0.0001863,2]
[367426402,1750794644045,-631.289635,0.0001863,2]
[367426404,1750794644054,-1554.6,0.0001863,2]
[367426406,1750794644063,-460.0,0.0001863,2]
[367426408,1750794644073,-215.002681,0.0001863,2]
[367426410,1750794644082,-460.0,0.0001863,2]
[367426412,1750794644091,-215.002681,0.0001863,2]
[367426414,1750794644101,-151.0,0.0001863,2]
[367426415,1750794644112,-843.67,0.0001863,2]
[367426416,1750794644122,-460.0,0.0001863,2]
[367426417,1750794644131,-475.45,0.0001863,2]
[367426418,1750794644140,-2304.36,0.0001863,2]
[367426419,1750794644150,-490.18,0.0001863,2]
[367426420,1750794644159,-544.62,0.0001863,2]
[367426421,1750794644168,-1069.45,0.0001863,2]
[367426422,1750794644178,-460.0,0.0001863,2]
[367426423,1750794644187,-1030.01,0.0001863,2]
[367426424,1750794644197,-460.0,0.0001863,2]
[367426425,1750794644206,-460.0,0.0001863,2]
[367426426,1750794644215,-477.03,0.0001863,2]
[367426427,1750794644225,-2721.4,0.0001863,2]
[367426428,1750794644234,-460.0,0.0001863,2]
[367426429,1750794644247,-1150.63,0.0001863,2]
[367426430,1750794644256,-460.0,0.00018635,2]
[367426431,1750794644265,-151.0,0.00018774,2]
[367426432,1750794644274,-183.45312,0.00018774,2]
[367426433,1750794644285,-151.0,0.000188,2]
[367426434,1750794644295,-286.51916417,0.00018815,2]
[367426435,1750794644304,-2000.0,0.00018854,2]
[367426436,1750794644314,-2000.0,0.00018854,2]
[367426437,1750794644323,-151.0,0.00018878,2]
[367426438,1750794644332,-151.0,0.00018885,2]
[367426439,1750794644342,-151.0,0.00018885,2]
[367426440,1750794644351,-159.469316,0.00018885,2]
[367426441,1750794644360,-159.469316,0.00018885,2]
[367426442,1750794644370,-151.0,0.00018885,2]
[367426443,1750794644379,-151.0,0.00018885,2]
[367426444,1750794644388,-179.327122,0.00018885,2]
[367426445,1750794644397,-179.327122,0.00018885,2]
[367426446,1750794644407,-198.864372,0.00018885,2]
[367426447,1750794644416,-198.864372,0.00018885,2]
[367426448,1750794644425,-25000.0,0.00018885,2]
[367426449,1750794644434,-5000.0,0.00018885,2]
[367426450,1750794644443,-2000.0,0.00018893,2]
[367426451,1750794644453,-753.89118869,0.000189,2]
[367426452,1750794644462,-197.925629,0.00018904,2]
[367426454,1750794644470,-460.0,0.00018904,2]
[367426455,1750794644479,-354.5,0.00018904,2]
[367426456,1750794644488,-822.07,0.00018904,2]
[367426458,1750794644498,-460.0,0.00018904,2]
[367426459,1750794644508,-212.92,0.00018904,2]
[367426460,1750794644518,-460.0,0.00018904,2]
[367426461,1750794644528,-460.0,0.00018904,2]
[367426462,1750794644539,-957.79,0.00018904,2]
[367426463,1750794644549,-289.21,0.00018904,2]
[367426464,1750794644558,-574.08,0.00018904,2]
[367426465,1750794644567,-531.12,0.00018904,2]
[367426466,1750794644577,-1262.78,0.00018904,2]
[367426467,1750794644586,-977.36,0.00018904,2]
[367426468,1750794644595,-263.3,0.00018904,2]
[367426469,1750794644605,-460.0,0.00018904,2]
[367426470,1750794644614,-460.0,0.00018904,2]
[367426471,1750794644623,-571.74,0.00018904,2]
[367426472,1750794644632,-1098.71,0.00018904,2]
[367426473,1750794644641,-833.51,0.00018904,2]
[367426474,1750794644650,-1554.6,0.00018904,2]
[367426475,1750794644660,-181.48,0.00018904,2]
[367426476,1750794644668,-460.0,0.00018904,2]
[367426477,1750794644679,-843.67,0.00018904,2]
[367426478,1750794644687,-460.0,0.00018904,2]
[367426479,1750794644696,-475.45,0.00018904,2]
[367426480,1750794644705,-2304.36,0.00018904,2]
[367426481,1750794644714,-490.18,0.00018904,2]
[367426482,1750794644722,-544.62,0.00018904,2]
[367426483,1750794644732,-1069.45,0.00018904,2]
[367426484,1750794644740,-460.0,0.00018904,2]
[367426485,1750794644749,-1030.01,0.00018904,2]
[367426486,1750794644758,-460.0,0.00018904,2]
[367426487,1750794644766,-460.0,0.00018904,2]
[367426488,1750794644775,-2721.4,0.00018904,2]
[367426489,1750794644784,-460.0,0.00018904,2]
[367426490,1750794644793,-192.031872,0.00018904,2]
[367426491,1750794644802,-1150.63,0.00018904,2]
[367426492,1750794644812,-192.031872,0.00018904,2]
[367426493,1750794644821,-1019.242492,0.00018942,2]
[367426494,1750794644830,-620.29654723,0.00018975,2]
[367426495,1750794644839,-1000.0,0.00019002,2]
[367426496,1750794644849,-631.289635,0.00019022,2]
[367426497,1750794644858,-631.289635,0.00019022,2]
[367426498,1750794644867,-215.002681,0.00019022,2]
[367426499,1750794644875,-215.002681,0.00019022,2]
[367426500,1750794644884,-179.85611511,0.00019034,2]
[367426501,1750794644893,-151.0,0.00019065,2]
[367426503,1750794644903,-500.0,0.00019068,2]
[367426504,1750794644912,-250.0,0.00019135,2]
[367426505,1750794644921,-1243.0,0.00019176,2]
[367426506,1750794644930,-500.0,0.00019178,2]
[367426507,1750794644939,-609.98685932,0.00019178,2]
[367426508,1750794644949,-500.0,0.00019178,2]
[367426509,1750794644959,-500.0,0.00019178,2]
[367426510,1750794644968,-205.00648686,0.00019178,2]
[367426511,1750794644978,-537.47,0.00019178,2]
[367426512,1750794644987,-822.07,0.00019178,2]
[367426513,1750794644996,-460.0,0.00019178,2]
[367426514,1750794645005,-151.0,0.00019178,2]
[367426515,1750794645015,-460.0,0.00019178,2]
[367426516,1750794645025,-460.0,0.00019178,2]
[367426517,1750794645034,-957.79,0.00019178,2]
[367426518,1750794645044,-574.08,0.00019178,2]
[367426519,1750794645055,-531.12,0.00019178,2]
[367426520,1750794645065,-1262.78,0.00019178,2]
[367426521,1750794645075,-977.36,0.00019178,2]
[367426522,1750794645085,-384.63083371,0.00019178,2]
[367426523,1750794645094,-460.0,0.00019178,2]
[367426524,1750794645104,-571.74,0.00019178,2]
[367426525,1750794645113,-1098.71,0.00019178,2]
[367426526,1750794645123,-151.0,0.00019178,2]
[367426527,1750794645133,-833.51,0.00019178,2]
[367426528,1750794645143,-1554.6,0.00019178,2]
[367426529,1750794645152,-460.0,0.00019178,2]
[367426530,1750794645161,-843.67,0.00019178,2]
[367426531,1750794645170,-460.0,0.00019178,2]
[367426532,1750794645180,-475.45,0.00019178,2]
[367426533,1750794645190,-2304.36,0.00019178,2]
[367426534,1750794645200,-490.18,0.00019178,2]
[367426535,1750794645210,-544.62,0.00019178,2]
[367426536,1750794645219,-1069.45,0.00019178,2]
[367426537,1750794645228,-460.0,0.00019178,2]
[367426538,1750794645237,-1030.01,0.00019178,2]
[367426539,1750794645249,-460.0,0.00019178,2]
[367426540,1750794645257,-460.0,0.00019178,2]
[367426541,1750794645267,-2721.4,0.00019178,2]
[367426542,1750794645276,-460.0,0.00019178,2]
[367426543,1750794645287,-1150.63,0.00019178,2]
[367426544,1750794645296,-806.685118,0.00019178,2]
[367426545,1750794645305,-14919.36602293,0.000192,2]
[367426546,1750794645316,-4880.0,0.000192,2]
[367426547,1750794645325,-151.0,0.000192,2]
[367426548,1750794645335,-151.0,0.000192,2]
[367426549,1750794645344,-151.0,0.0001926,2]
[367426550,1750794645353,-500.0,0.0001926,2]
[367426551,1750794645362,-500.0,0.0001926,2]
[367426552,1750794645371,-151.0,0.0001926,2]
[367426553,1750794645380,-205.678824,0.0001926,2]
[367426554,1750794645389,-151.0,0.00019287,2]
[367426555,1750794645398,-500.0,0.00019287,2]
[367426556,1750794645407,-197.999999,0.00019315,2]
[367426557,1750794645416,-258.501245,0.00019315,2]
[367426559,1750794645426,-151.0,0.00019315,2]
[367426561,1750794645435,-159.469316,0.00019315,2]
[367426563,1750794645444,-159.469316,0.00019315,2]
[367426565,1750794645454,-151.0,0.00019315,2]
[367426567,1750794645463,-151.0,0.00019315,2]
[367426569,1750794645472,-609.30749679,0.00019329,2]
[367426571,1750794645482,-975.07908497,0.00019329,2]
[367426573,1750794645491,-168.42003542,0.00019352,2]
[367426575,1750794645501,-179.327122,0.00019358,2]
[367426577,1750794645510,-179.327122,0.00019358,2]
[367426579,1750794645519,-153.0,0.0001938,2]
[367426581,1750794645528,-153.0,0.0001938,2]
[367426582,1750794645538,-153.0,0.0001938,2]
[367426584,1750794645546,-153.0,0.0001938,2]
[367426586,1750794645555,-198.864372,0.0001938,2]
[367426587,1750794645564,-198.864372,0.0001938,2]
[367426588,1750794645574,-427.0,0.00019393,2]
[367426589,1750794645583,-151.0,0.00019399,2]
[367426590,1750794645592,-405660.9240149,0.00019399,2]
[367426647,1750794646123,-460.0,0.00016438,2]
[367426649,1750794646133,-460.0,0.00016712,2]
[367426651,1750794646143,-460.0,0.00016986,2]
[367426653,1750794646152,-460.0,0.0001726,2]
[367426655,1750794646162,-589.59,0.00017534,2]
[367426657,1750794646171,-16554.94319431,0.00019399,2]
[367426659,1750794646182,-3085.1,0.00019399,2]
[367426662,1750794646198,-62598.24708818,0.00019399,2]
[367426664,1750794646210,-1237.95088092,0.00019399,2]
[367426666,1750794646221,-377.33167231,0.00019399,2]